Cogmind - Beta 10.2 @@@ ROGUE MODE // 2021.08.13 @ 14:30:41 Player: Sam Result: Destroyed by G-34 Mercenary with Small Laser Performance ------------- Evolutions (0) 0 Regions Visited (2) 400 Robots Destroyed (8) 40 Value Destroyed (303) 303 Prototype IDs (2) 40 Alien Tech Used (0) 0 Bonus (0) 0 TOTAL SCORE: 783 Bonus ------- None Cogmind --------- Core Integrity 0/250 Matter 277/300 Energy 100/100 System Corruption 0% Temperature Cool (6) Movement Core (50) Location -10/Mines Parts ------- > --- POWER (1) -------- (None) > --- PROPULSION (2) --- (None) > --- UTILITY (2) ------ (None) > --- WEAPON (2) ------- (None) > --- INVENTORY (4) ---- Heat Sink Heat Sink Small Storage Unit Peak State ------------ > --- POWER ------------ Light Ion Engine > --- PROPULSION ------- Light Treads Light Treads > --- UTILITY ---------- Small Storage Unit Salvage Targeting Computer > --- WEAPON ----------- EM Pulse Gun Spread Laser > --- INVENTORY -------- Light Ion Engine Small Laser Light Assault Rifle Rocket Launcher Mining Laser [Rating: 9] Favorites ----------- Power Light Ion Engine Engine Light Ion Engine Propulsion Light Treads Treads Light Treads Utility Small Storage Unit Device Sensor Array Storage Small Storage Unit Processor Signal Interpreter Weapon Spread Laser Energy Gun Spread Laser Ballistic Gun Light Assault Rifle Launcher Rocket Launcher Build | -11 -10 -10 ------- Run | Scr Mat Min Slots Evolved . | . . . Power . | . . . Propulsion . | . . . Utility . | . . . Weapon . | . . . Parts Attached 18 | 6 10 2 Power 1 | 1 . . Engine 1 | 1 . . Core . | . . . Reactor . | . . . Propulsion 2 | 2 . . Treads 2 | 2 . . Leg . | . . . Wheel . | . . . Hover . | . . . Flight . | . . . Utility 5 | 1 4 . Device 2 | . 2 . Storage 1 | 1 . . Processor 2 | . 2 . Hackware . | . . . Protection . | . . . Artifact . | . . . Weapon 10 | 2 6 2 Energy Gun 6 | 1 4 1 Energy Cannon . | . . . Ballistic Gun 2 | 1 1 . Ballistic Cannon . | . . . Launcher 2 | . 1 1 Special Weapon . | . . . Impact Weapon . | . . . Slashing Weapon . | . . . Piercing Weapon . | . . . Special Melee Weapon . | . . . Unidentified Prototypes . | . . . Parts Lost 10 | . 1 9 Power 1 | . . 1 Propulsion 2 | . . 2 Utility 2 | . . 2 Weapon 5 | . 1 4 Highest Loss Streak 6 | . 1 6 Average Slot Usage (%) 90 | . 96 79 Engine 13 | . 14 13 Treads 24 | . 28 17 Device 8 | . 6 13 Storage 8 | . 11 . Processor 8 | . 6 13 Energy Gun 22 | . 24 17 Ballistic Gun 2 | . 3 . Naked Turns 7 | . . 7 Heaviest Build 13 | 10 13 11 Greatest Support 40 | 40 40 40 Greatest Overweight (x) 2 | 2 . . Average Overweight (x) . | . . . Largest Inventory Capacity 6 | 6 6 4 Average Capacity 5 | 5 5 4 Most Carried 6 | 2 6 4 Average Carried 4 | . 4 3 Final Capacity 6 | 6 4 4 Final Carried 4 | 2 4 3 Class Distribution -------------------- 100% | Mutant Dominant Class ---------------- Mutant | -10/Materials Mutant | -10/Mines Resources | -11 -10 -10 ----------- Run | Scr Mat Min Matter Collected 366 | 254 83 29 Remotely . | . . . Salvage Created 267 | . 169 98 Parts 10 | . 7 3 Haulers Intercepted . | . . . Recyclers Shooed 2 | . 2 . Parts Field Recycled . | . . . Retrieved Matter . | . . . Parts Self-Destructed . | . . . Prevented . | . . . Kills | -11 -10 -10 ------- Run | Scr Mat Min Combat Hostiles Destroyed 7 | . 4 3 Guns 7 | . 4 3 Classes Destroyed 2 | . 2 . Watcher 1 | . 1 . Grunt 7 | . 4 3 Best Kill Streak 2 | . 2 2 Combat Bots Only 2 | . 2 2 Max Kills in Single Turn 1 | . 1 1 Gunslinging . | . . . Exploded . | . . . Melee . | . . . Uniques/NPCs Destroyed . | . . . Combat | -11 -10 -10 -------- Run | Scr Mat Min Damage Taken 870 | . 282 588 Core 250 | . 18 232 Absorbed by Shields . | . . . Core Remaining (%) 100 | 100 . . Volleys Fired 33 | . 13 20 Largest 2 | . 2 2 Hottest 105 | . 105 105 Shots Fired 51 | . 25 26 Gun 45 | . 25 20 Cannon . | . . . Launcher 6 | . . 6 Special . | . . . Kinetic . | . . . Thermal 33 | . 13 20 Explosive 6 | . . 6 Electromagnetic 12 | . 12 . Robot Hit Streak 13 | . 13 11 Robot Miss Streak 4 | . 4 2 Penetration Max . | . . . Secondary Targets . | . . . Shots Hit Robots 40 | . 22 18 Core Hits 38 | . 19 19 Critical Hits . | . . . Critical Kills . | . . . Critical Parts Destroyed . | . . . Melee Attacks . | . . . Impact . | . . . Slashing . | . . . Piercing . | . . . Sneak Attacks . | . . . Combat Hostiles . | . . . Follow-up Attacks . | . . . Damage Inflicted 1060 | . 471 589 Guns 446 | . 297 149 Cannons . | . . . Explosions 610 | . 174 436 Melee . | . . . Ramming 4 | . . 4 Kinetic . | . . . Thermal 462 | . 313 149 Explosive 436 | . . 436 Electromagnetic 158 | . 158 . Impact . | . . . Slashing . | . . . Piercing . | . . . Highest Corruption . | . . . Average Corruption . | . . . Corruption Purged . | . . . Overload Shots . | . . . Overflow Damage 53 | . 13 40 Projectiles . | . . . Explosions 53 | . 13 40 Melee . | . . . Knockbacks . | . . . Impact . | . . . Kinetic . | . . . Secondary . | . . . Self-Inflicted Damage 216 | . 106 110 Shots 6 | . 3 3 Rammed 2 | . . 2 Targets Rammed 2 | . . 2 Kicked . | . . . Crushed . | . . . Highest Temperature 412 | . 303 412 Average Temperature 136 | . 131 142 Received Heat Transfer 339 | . 72 267 Effects 2 | . 1 1 Shutdowns 1 | . . 1 Energy Bleed 1 | . 1 . Siege Activations . | . . . Robots Corrupted . | . . . Combat Hostiles . | . . . Parts Fried . | . . . Impact Corruptions . | . . . Robots Melted . | . . . Combat Hostiles . | . . . Parts Melted . | . . . Heat Transferred 590 | . 370 220 Parts Sabotaged . | . . . Parts Stolen . | . . . Parts Stripped . | . . . Power Chain Reactions 3 | . 3 . Missiles Intercepted . | . . . Alert | -11 -10 -10 ------- Run | Scr Mat Min Peak Influence 105 | . 105 75 Initial 4 | . . 4 Average 24 | . 24 32 Maximum Alert Level . | . . . Low Security (%) 100 | 100 100 100 Level 1 . | . . . Level 2 . | . . . Level 3 . | . . . Level 4 . | . . . Level 5 . | . . . High Security . | . . . Max Security . | . . . Squads Dispatched . | . . . Investigation . | . . . Extermination . | . . . Reinforcement . | . . . Assault . | . . . Garrison . | . . . Intercept . | . . . Construction Impeded . | . . . Haulers Reinforced . | . . . Stealth | -11 -10 -10 --------- Run | Scr Mat Min Distress Signals 1 | . 1 . Communications Jammed . | . . . Distress Signals . | . . . Times Spotted 15 | . 9 6 Peak Tracking Total 4 | . 4 2 Tactical Retreats 1 | . . 1 Traps | -11 -10 -10 ------- Run | Scr Mat Min Traps Triggered . | . . . Indirectly . | . . . Trap Hack Attempts . | . . . Triggered . | . . . Disarmed . | . . . Reprogrammed . | . . . Reused . | . . . Traps Extracted . | . . . Installed . | . . . Triggered . | . . . Machines | -11 -10 -10 ---------- Run | Scr Mat Min Machines Disabled 1 | . 1 . Max in Single Turn 1 | . 1 . Machines Sabotaged . | . . . Garrisons Compromised . | . . . Overloaded Fab Kills . | . . . Fab Network Shutdowns . | . . . Hacking | -11 -10 -10 --------- Run | Scr Mat Min Machines Accessed 3 | . 3 . Terminals 3 | . 3 . Fabricators . | . . . Repair Stations . | . . . Recycling Units . | . . . Scanalyzers . | . . . Garrison Access . | . . . Total Hacks 12 | . 12 . Successful 9 | . 9 . Failed 3 | . 3 . Catastrophic 1 | . 1 . Database Lockouts . | . . . Manual . | . . . Terminals 12 | . 12 . Fabricators . | . . . Repair Stations . | . . . Recycling Units . | . . . Scanalyzers . | . . . Garrison Access . | . . . Terminal Hacks 9 | . 9 . Record 5 | . 5 . Prototype ID Bank 1 | . 1 . Investigation Status 1 | . 1 . Hauler Manifests 1 | . 1 . Zone Layout 1 | . 1 . Fabricator Hacks . | . . . Repair Station Hacks . | . . . Recycling Unit Hacks . | . . . Scanalyzer . | . . . Garrison Access Hacks . | . . . Unauthorized Hacks . | . . . Terminals . | . . . Fabricators . | . . . Repair Stations . | . . . Recycling Units . | . . . Scanalyzers . | . . . Garrison Access . | . . . Data Cores Recovered . | . . . Used . | . . . Hacking Detections 2 | . 2 . Full Trace Events . | . . . Feedback Events . | . . . Feedback Blocked . | . . . Robot Schematics Acquired . | . . . Robots Built . | . . . Matter . | . . . Time . | . . . Total Robot Build Rating . | . . . Part Schematics Acquired . | . . . Parts Built . | . . . Matter . | . . . Time . | . . . Total Part Build Rating . | . . . Parts Repaired . | . . . Time . | . . . Parts Recycled . | . . . Recycled Matter . | . . . Retrieved Matter . | . . . Retrieved Components . | . . . Parts Scanalyzed . | . . . Part Schematics Acquired . | . . . Parts Damaged . | . . . Bothacking | -11 -10 -10 ------------ Run | Scr Mat Min Used RIF Installer . | . . . Robots Hacked . | . . . Non-combat . | . . . Combat . | . . . Robot Hacks Applied . | . . . Relay Couplers Released . | . . . Robots Rewired . | . . . Allies Hacked . | . . . Hacks Repelled . | . . . Allies | -11 -10 -10 -------- Run | Scr Mat Min Total Allies . | . . . Largest Group . | . . . Highest-Rated Group . | . . . Highest-Rated Ally . | . . . Total Orders . | . . . Ally Attacks . | . . . Total Damage . | . . . Kills . | . . . Allies Corrupted . | . . . Allies Melted . | . . . Intel | -11 -10 -10 ------- Run | Scr Mat Min Robot Analysis Total . | . . . Derelict Logs Recovered . | . . . Drone Launches . | . . . Drone Recoveries . | . . . Exploration | -11 -10 -10 ------------- Run | Scr Mat Min Turns Passed 1290 | 94 840 356 Spaces Moved 686 | 51 459 176 Core 23 | 9 . 14 Treads 663 | 42 459 162 Legs . | . . . Wheels . | . . . Hover . | . . . Flight . | . . . Fastest Speed 50 | 50 160 50 Average Speed 157 | 151 160 151 Slowest Speed 160 | 160 160 160 Overloaded Moves . | . . . Propulsion Burnouts . | . . . Robots Hopped . | . . . Cave-ins Triggered . | . . . Exploration Rate (%) 33 | 4 57 38 Regions Visited 2 Branch Regions 1 Pre-discovered Areas . | . . . Known Exits Taken 1 | . 1 . Unknown Exits Taken 1 | 1 . . Scrap Searched . | . . . Spaces Dug . | . . . Terrain Destroyed 74 | . 15 59 Melee . | . . . Projectile . | . . . AOE 74 | . 15 59 Terrain Rammed . | . . . Walls Destroyed . | . . . Machines Disabled . | . . . Actions | -11 -10 -10 --------- Run | Scr Mat Min Total 844 | 65 540 239 Wait 85 | 7 40 38 Move 684 | 50 458 176 Hop . | . . . Pick Up 13 | 2 10 1 Fast Attach 8 | 6 2 . Attach 3 | . 1 2 Detach . | . . . Swap 7 | . 7 . Drop 9 | . 9 . Fire 33 | . 13 20 Melee . | . . . Ram 2 | . . 2 Kick . | . . . Crush . | . . . Escape Stasis . | . . . Rewire . | . . . Trap . | . . . Miscellaneous . | . . . Route ------- -11/Scrapyard -10/Materials (discovered 2 exits: *Mat / *Min) -10/Mines (discovered 1 exit: *Exi) History --------- Turn | Location | Event 22 | -11/Scrapyard | Discovered new exit (range 14) 95 | -11/Scrapyard | Entered Materials 305 | -10/Materials | Build established: Mutant 473 | -10/Materials | Discovered new exit (range 10) 768 | -10/Materials | Discovered new exit (range 16) 817 | -10/Materials | Identified exit to Materials 917 | -10/Materials | Identified exit to Mines 935 | -10/Materials | Entered Mines 985 | -10/Mines | Deemed a non-threat by the Exiles lab entrance 987 | -10/Mines | Discovered new exit (range 5) 993 | -10/Mines | Identified exit to Exiles 1073 | -10/Mines | Lost 3 parts (1n2w) 1275 | -10/Mines | Core integrity fell below 50% 1287 | -10/Mines | Core integrity fell below 20% 1291 | -10/Mines | Destroyed by G-34 Mercenary with Small Laser Last Messages --------------- 01242_ U-05 Engineer lays Concrete. 01245_ R-06 Scavenger collects Aluminum Leg. 01245_ U-05 Engineer builds a Wall. 01252_ K-01 Serf collects debris. 01270_ Lgt. Treads destroyed. 01270_ K-01 Serf collects debris. 01272_ Spread Laser destroyed. 01274_ Lgt. Ion Engine destroyed. 01274_ Destroyed Lgt. Ion Engine. 01274_ K-01 Serf collects debris. 01280_ Rocket Launcher destroyed. 01280_ Destroyed Rocket Launcher. 01280_ Sensor Array destroyed. 01280_ Destroyed Sensor Array. 01280_ K-01 Serf collects debris. 01283_ Slammed into G-34 Mercenary. 01284_ Slammed into G-47 Trooper. 01284_ Signal Interpreter destroyed. 01284_ K-01 Serf collects debris. 01289_ The unstable cave ceiling collapses. Map ----- +----------------------------------------------------+ | | | | | | | | | | | | | | | | | | | | | ???????????????????????????????????????????????? | | ???????????????????????????????????????????????? | | ???????????????????????????????????????????????? | | ?????????????########??????????????????????????? | | ????????????## #???####???????????????????? | | ????????????# #?## ##??????????????????? | | ???????????## ### #####??????????????? | | ???????????# # ## ??????????????? | | ???????????# # # ???????????????? | | ??????????### g #?????????#??????????? | | ?????????## k #????????? #??????????? | | ?????????# g #????????# #??????????? | | ?????????# #???????# ##?????????? | | ?????????# # ######## #?????????? | | ????????# ###### ## #??????????? | | ???????# ?????#### @ #?????????????? | | ???????# #????????## ##?????????????? | | ???????# ##??????##### ###??????????????? | | ???????###????????# # ##????????????????? | | ??????????????#???# # ##????????????????? | | ???????????## ##?## #????????????????? | | ??????????# #?# ##????????????????? | | ????####?# #?## r####?????????????????? | | ???## ## #???# t ##???????????????????? | | ???# #????## #???????????????????? | | ???# #?????## #???????????????????? | | ???# ##??????# #???????????????????? | | ???# ##??????## ##??????????????????? | | ??## ####?????### ##?????????????????? | | ?## ##??####### #?????????????????? | | ?# ##?## ## k #?????????????????? | | ?# ### #?????????????????? | | ?## #?????????????????? | | ??## ### #?????????????????? | | ???###### ##?## ##?????????????????? | | ????????##### #???#######??????????????????? | | ????????????## #????????????????????????????? | | ?????????????## #????????????????????????????? | | ??????##???##### #########????????????????????? | | ??????#>#### #????????????????????? | +----------------------------------------------------+ Best States ------------- Heat Dissipation 25 Energy Generation 10 Energy Capacity 125 Matter Stores 300 Matter Capacity 300 Sight Range 16 Robot Scan Range 10 Terrain Scan Density 10 Evasion (%) 50 Recoil Reduction 2 Salvage Targeting 1 Item Schematics ----------------- None Robot Schematics ------------------ None Fabricated ------------ Nothing Alien Tech Used ----------------- None Achievements -------------- None Challenges ------------ None Game ------ Seed PointyTransdimensionalSteel Manual? 0 Play Time 00:17:21 Cumulative 7.7 hours Start 2021.08.13 @ 13:03:58 End 2021.08.13 @ 14:30:41 Sessions 2 Manual Loads 0 Difficulty Rogue Special Mode None Game No. 11 Rogue 11 Adventurer 0 Explorer 0 Win Type - Total 0 Types 0/0/0/0/0/0/0/0/0 Lore% 14 Gallery% 16 Achievement% 11 Wizard Run 0 Options --------- ASCII 0 Keyboard 0 Movement Arrows Keybinds 0 Fullscreen 1 Font 18/Terminus Map View 76x50 Tactical HUD 1 Map Filters NONE Filters NONE Steam 1 RUN: 56d8a47e-98b3-4685-b903-80497d7c5b0b